[Event "Titled Tuesday Blitz August 08 Early 2023"]
[White "Aslanov, Umid"]
[Black "Narayanan, Srinath"]
[WhiteFideId "13412620"]
[BlackFideId "5018420"]
[WhiteElo "2591"]
[BlackElo "2890"]
[Result "1/2-1/2"]
[Round "2"]
[TimeControl "180+1"]
[Date "2023.08.08"]
[WhiteClock "0:00:08"]
[BlackClock "0:00:06"]
[Board "38"]

1. e4 {[%clk 0:03:00]}  c5 {[%clk 0:02:59]} 2. Nf3 {[%clk 0:03:01]}  d6 {[%clk 0:03:00]} 3. d4 {[%clk 0:03:02]}  cxd4 {[%clk 0:03:01]} 4. Nxd4 {[%clk 0:03:02]}  Nf6 {[%clk 0:03:02]} 5. Nc3 {[%clk 0:03:03]}  Nc6 {[%clk 0:03:03]} 6. Bc4 {[%clk 0:03:03]}  e6 {[%clk 0:03:03]} 7. O-O {[%clk 0:03:02]}  Be7 {[%clk 0:03:03]} 8. Re1 {[%clk 0:03:03]}  O-O {[%clk 0:03:02]} 9. h3 {[%clk 0:03:02]}  a6 {[%clk 0:03:01]} 10. a4 {[%clk 0:03:02]}  Qc7 {[%clk 0:03:00]} 11. Nxc6 {[%clk 0:02:56]}  bxc6 {[%clk 0:03:00]} 12. Bf4 {[%clk 0:02:55]}  e5 {[%clk 0:02:53]} 13. Bg5 {[%clk 0:02:54]}  Be6 {[%clk 0:02:54]} 14. Qe2 {[%clk 0:02:49]}  a5 {[%clk 0:02:53]} 15. Rad1 {[%clk 0:02:45]}  Rad8 {[%clk 0:02:37]} 16. Bxf6 {[%clk 0:02:33]}  Bxf6 {[%clk 0:02:37]} 17. Bxe6 {[%clk 0:02:33]}  fxe6 {[%clk 0:02:37]} 18. Qc4 {[%clk 0:02:34]}  Rfe8 {[%clk 0:02:29]} 19. Nb5 {[%clk 0:02:30]}  Qd7 {[%clk 0:01:57]} 20. Nxd6 {[%clk 0:02:20]}  Rf8 {[%clk 0:01:56]} 21. Rd3 {[%clk 0:02:13]}  Bh4 {[%clk 0:01:51]} 22. Nf5 {[%clk 0:02:04]}  Qf7 {[%clk 0:01:31]} 23. g3 {[%clk 0:01:29]}  Bg5 {[%clk 0:01:04]} 24. h4 {[%clk 0:01:11]}  Bxh4 {[%clk 0:00:32]} 25. gxh4 {[%clk 0:00:52]}  Rxd3 {[%clk 0:00:33]} 26. cxd3 {[%clk 0:00:50]}  exf5 {[%clk 0:00:33]} 27. exf5 {[%clk 0:00:22]}  Qxc4 {[%clk 0:00:33]} 28. dxc4 {[%clk 0:00:22]}  Rxf5 {[%clk 0:00:34]} 29. Re4 {[%clk 0:00:14]}  c5 {[%clk 0:00:34]} 30. Kg2 {[%clk 0:00:14]}  Kf7 {[%clk 0:00:34]} 31. f3 {[%clk 0:00:14]}  Ke6 {[%clk 0:00:33]} 32. Kf2 {[%clk 0:00:15]}  g5 {[%clk 0:00:21]} 33. Ke3 {[%clk 0:00:11]}  h5 {[%clk 0:00:12]} 34. hxg5 {[%clk 0:00:11]}  Rxg5 {[%clk 0:00:13]} 35. Rh4 {[%clk 0:00:12]}  Kf5 {[%clk 0:00:12]} 36. b3 {[%clk 0:00:10]}  Kg6 {[%clk 0:00:12]} 37. Ke4 {[%clk 0:00:08]}  Rg3 {[%clk 0:00:07]} 38. Rh1 {[%clk 0:00:05]}  Kg5 {[%clk 0:00:07]} 39. Kxe5 {[%clk 0:00:05]}  Rxf3 {[%clk 0:00:06]} 40. Kd5 {[%clk 0:00:05]}  Rxb3 {[%clk 0:00:05]} 41. Kxc5 {[%clk 0:00:06]}  h4 {[%clk 0:00:06]} 42. Kd4 {[%clk 0:00:05]}  Rb4 {[%clk 0:00:04]} 43. Kd5 {[%clk 0:00:04]}  Rxa4 {[%clk 0:00:04]} 44. c5 {[%clk 0:00:04]}  Ra2 {[%clk 0:00:04]} 45. Rc1 {[%clk 0:00:03]}  Rd2+ {[%clk 0:00:04]} 46. Kc4 {[%clk 0:00:03]}  Rb2 {[%clk 0:00:02]} 47. c6 {[%clk 0:00:03]}  Rb8 {[%clk 0:00:01]} 48. Kd5 {[%clk 0:00:03]}  h3 {[%clk 0:00:01]} 49. Kd6 {[%clk 0:00:02]}  Rc8 {[%clk 0:00:02]} 50. c7 {[%clk 0:00:03]}  Kg4 {[%clk 0:00:02]} 51. Kd7 {[%clk 0:00:04]}  Rxc7+ {[%clk 0:00:03]} 52. Kxc7 {[%clk 0:00:05]}  Kg3 {[%clk 0:00:03]} 53. Kb6 {[%clk 0:00:05]}  h2 {[%clk 0:00:04]} 54. Kxa5 {[%clk 0:00:06]}  Kg2 {[%clk 0:00:04]} 55. Rc2+ {[%clk 0:00:07]}  Kg1 {[%clk 0:00:05]} 56. Rxh2 {[%clk 0:00:08]}  Kxh2 {[%clk 0:00:06]} 1/2-1/2


[Site "https://www.chess.com"]

[Event "Titled Tuesday Blitz August 08 Early 2023"]
[White "Harshavardhan G B"]
[Black "Tsvetkov, Andrey"]
[WhiteFideId "25059009"]
[BlackFideId "34139360"]
[WhiteElo "2884"]
[BlackElo "2590"]
[Result "0-1"]
[Round "2"]
[TimeControl "180+1"]
[Date "2023.08.08"]
[WhiteClock "0:00:26"]
[BlackClock "0:00:08"]
[Board "40"]

1. d4 {[%clk 0:03:00]}  Nf6 {[%clk 0:02:59]} 2. c4 {[%clk 0:02:59]}  e6 {[%clk 0:03:00]} 3. Nf3 {[%clk 0:02:58]}  d5 {[%clk 0:02:59]} 4. Nc3 {[%clk 0:02:58]}  c6 {[%clk 0:02:58]} 5. e3 {[%clk 0:02:57]}  Nbd7 {[%clk 0:02:58]} 6. Bd3 {[%clk 0:02:57]}  dxc4 {[%clk 0:02:57]} 7. Bxc4 {[%clk 0:02:57]}  b5 {[%clk 0:02:58]} 8. Be2 {[%clk 0:02:57]}  a6 {[%clk 0:02:59]} 9. O-O {[%clk 0:02:56]}  c5 {[%clk 0:02:57]} 10. e4 {[%clk 0:02:47]}  cxd4 {[%clk 0:02:48]} 11. Nxd4 {[%clk 0:02:45]}  Bb7 {[%clk 0:02:46]} 12. Bf3 {[%clk 0:02:44]}  Ne5 {[%clk 0:02:43]} 13. Bf4 {[%clk 0:02:40]}  Nxf3+ {[%clk 0:02:41]} 14. gxf3 {[%clk 0:02:36]}  Bc5 {[%clk 0:02:22]} 15. Be3 {[%clk 0:02:35]}  Nd7 {[%clk 0:02:09]} 16. Nc2 {[%clk 0:02:28]}  Rc8 {[%clk 0:02:02]} 17. Kh1 {[%clk 0:02:25]}  O-O {[%clk 0:01:59]} 18. Rg1 {[%clk 0:02:24]}  Ne5 {[%clk 0:01:53]} 19. Qe2 {[%clk 0:02:22]}  Qh4 {[%clk 0:01:46]} 20. Rg3 {[%clk 0:02:05]}  Ng6 {[%clk 0:01:40]} 21. Rag1 {[%clk 0:01:54]}  Bd6 {[%clk 0:01:40]} 22. R3g2 {[%clk 0:01:52]}  b4 {[%clk 0:01:41]} 23. Na4 {[%clk 0:01:46]}  f5 {[%clk 0:01:29]} 24. Nd4 {[%clk 0:01:37]}  fxe4 {[%clk 0:01:25]} 25. f4 {[%clk 0:01:37]}  Nxf4 {[%clk 0:01:11]} 26. Bxf4 {[%clk 0:01:31]}  Bxf4 {[%clk 0:01:05]} 27. Nxe6 {[%clk 0:01:29]}  e3 {[%clk 0:01:02]} 28. f3 {[%clk 0:01:27]}  Bxh2 {[%clk 0:00:34]} 29. Rxh2 {[%clk 0:00:43]}  Bxf3+ {[%clk 0:00:17]} 30. Qxf3 {[%clk 0:00:44]}  Qxh2+ {[%clk 0:00:18]} 31. Kxh2 {[%clk 0:00:44]}  Rxf3 {[%clk 0:00:18]} 32. Rxg7+ {[%clk 0:00:45]}  Kh8 {[%clk 0:00:17]} 33. Rg2 {[%clk 0:00:45]}  Rg8 {[%clk 0:00:09]} 34. Rxg8+ {[%clk 0:00:33]}  Kxg8 {[%clk 0:00:10]} 35. Kg2 {[%clk 0:00:28]}  e2 {[%clk 0:00:10]} 36. Kxf3 {[%clk 0:00:28]}  e1=Q {[%clk 0:00:10]} 37. Nec5 {[%clk 0:00:29]}  h5 {[%clk 0:00:08]} 38. Nxa6 {[%clk 0:00:26]}  Qd1+ {[%clk 0:00:08]} 0-1


[Site "https://www.chess.com"]

[Event "Titled Tuesday Blitz August 08 Early 2023"]
[White "Baskakov, Egor"]
[Black "Vlassov, Nikolai"]
[WhiteFideId "24197866"]
[BlackFideId "4103360"]
[WhiteElo "2880"]
[BlackElo "2589"]
[Result "1-0"]
[Round "2"]
[TimeControl "180+1"]
[Date "2023.08.08"]
[WhiteClock "0:00:10"]
[BlackClock "0:00:05"]
[Board "41"]

1. e4 {[%clk 0:03:00]}  Nc6 {[%clk 0:02:59]} 2. Nc3 {[%clk 0:03:00]}  Nf6 {[%clk 0:02:58]} 3. g3 {[%clk 0:02:55]}  d5 {[%clk 0:02:57]} 4. exd5 {[%clk 0:02:56]}  Nd4 {[%clk 0:02:57]} 5. Nf3 {[%clk 0:02:41]}  Bg4 {[%clk 0:02:55]} 6. Bg2 {[%clk 0:02:41]}  Nxd5 {[%clk 0:02:53]} 7. a3 {[%clk 0:02:37]}  e6 {[%clk 0:02:38]} 8. h3 {[%clk 0:02:19]}  Bxf3 {[%clk 0:02:30]} 9. Bxf3 {[%clk 0:02:20]}  Nxf3+ {[%clk 0:02:30]} 10. Qxf3 {[%clk 0:02:19]}  Be7 {[%clk 0:02:30]} 11. O-O {[%clk 0:02:17]}  O-O {[%clk 0:02:29]} 12. d3 {[%clk 0:02:15]}  Nxc3 {[%clk 0:02:27]} 13. bxc3 {[%clk 0:02:16]}  Qd5 {[%clk 0:02:24]} 14. Kg2 {[%clk 0:02:16]}  Bf6 {[%clk 0:02:22]} 15. Bd2 {[%clk 0:02:13]}  Rfd8 {[%clk 0:02:18]} 16. Rab1 {[%clk 0:02:11]}  b6 {[%clk 0:02:18]} 17. c4 {[%clk 0:02:09]}  Qxf3+ {[%clk 0:02:14]} 18. Kxf3 {[%clk 0:02:10]}  Kf8 {[%clk 0:02:13]} 19. a4 {[%clk 0:02:10]}  a5 {[%clk 0:02:04]} 20. Rb5 {[%clk 0:02:07]}  Bd4 {[%clk 0:01:53]} 21. Rfb1 {[%clk 0:02:01]}  Rd7 {[%clk 0:01:51]} 22. Be3 {[%clk 0:02:00]}  Rad8 {[%clk 0:01:48]} 23. c5 {[%clk 0:01:53]}  bxc5 {[%clk 0:01:14]} 24. Rxa5 {[%clk 0:01:50]}  c4 {[%clk 0:01:09]} 25. dxc4 {[%clk 0:01:47]}  Bxe3 {[%clk 0:01:09]} 26. Kxe3 {[%clk 0:01:45]}  Rd2 {[%clk 0:01:08]} 27. Rb7 {[%clk 0:01:31]}  Rxc2 {[%clk 0:00:48]} 28. Rxc7 {[%clk 0:01:31]}  Rc3+ {[%clk 0:00:44]} 29. Ke2 {[%clk 0:01:26]}  Rc2+ {[%clk 0:00:43]} 30. Kf3 {[%clk 0:01:15]}  g5 {[%clk 0:00:26]} 31. Raa7 {[%clk 0:01:03]}  f5 {[%clk 0:00:20]} 32. Rxh7 {[%clk 0:00:56]}  Kg8 {[%clk 0:00:20]} 33. Rag7+ {[%clk 0:00:41]}  Kf8 {[%clk 0:00:19]} 34. Rd7 {[%clk 0:00:40]}  Rxd7 {[%clk 0:00:19]} 35. Rxd7 {[%clk 0:00:41]}  Rxc4 {[%clk 0:00:19]} 36. Ra7 {[%clk 0:00:41]}  Rc3+ {[%clk 0:00:19]} 37. Kg2 {[%clk 0:00:41]}  Ra3 {[%clk 0:00:19]} 38. h4 {[%clk 0:00:40]}  gxh4 {[%clk 0:00:19]} 39. gxh4 {[%clk 0:00:40]}  Kg8 {[%clk 0:00:19]} 40. h5 {[%clk 0:00:40]}  e5 {[%clk 0:00:18]} 41. a5 {[%clk 0:00:37]}  e4 {[%clk 0:00:17]} 42. a6 {[%clk 0:00:35]}  f4 {[%clk 0:00:17]} 43. h6 {[%clk 0:00:35]}  Ra2 {[%clk 0:00:16]} 44. Rg7+ {[%clk 0:00:17]}  Kh8 {[%clk 0:00:15]} 45. a7 {[%clk 0:00:17]}  e3 {[%clk 0:00:15]} 46. Rb7 {[%clk 0:00:16]}  e2 {[%clk 0:00:15]} 47. Re7 {[%clk 0:00:15]}  Rxa7 {[%clk 0:00:12]} 48. Rxe2 {[%clk 0:00:14]}  Kh7 {[%clk 0:00:13]} 49. Re6 {[%clk 0:00:13]}  Rf7 {[%clk 0:00:11]} 50. Kf3 {[%clk 0:00:13]}  Rf8 {[%clk 0:00:11]} 51. Kg4 {[%clk 0:00:13]}  Rf7 {[%clk 0:00:11]} 52. f3 {[%clk 0:00:12]}  Rf8 {[%clk 0:00:11]} 53. Kg5 {[%clk 0:00:13]}  Rf7 {[%clk 0:00:11]} 54. Rd6 {[%clk 0:00:11]}  Rf8 {[%clk 0:00:10]} 55. Rd7+ {[%clk 0:00:10]}  Kh8 {[%clk 0:00:10]} 56. Kg6 {[%clk 0:00:11]}  Ra8 {[%clk 0:00:10]} 57. Rd6 {[%clk 0:00:10]}  Kg8 {[%clk 0:00:10]} 58. Rf6 {[%clk 0:00:10]}  Ra3 {[%clk 0:00:05]} 59. h7+ {[%clk 0:00:10]} 1-0


[Site "https://www.chess.com"]

[Event "Titled Tuesday Blitz August 08 Early 2023"]
[White "Kravtsiv, Martyn"]
[Black "Vaibhav Jayant Raut"]
[WhiteFideId "14113147"]
[BlackFideId "5089034"]
[WhiteElo "2869"]
[BlackElo "2588"]
[Result "0-1"]
[Round "2"]
[TimeControl "180+1"]
[Date "2023.08.08"]
[WhiteClock "0:00:02"]
[BlackClock "0:00:03"]
[Board "43"]

1. e4 {[%clk 0:03:00]}  c5 {[%clk 0:02:58]} 2. Nf3 {[%clk 0:03:00]}  Nc6 {[%clk 0:02:58]} 3. Bb5 {[%clk 0:03:00]}  g6 {[%clk 0:02:56]} 4. O-O {[%clk 0:02:59]}  Bg7 {[%clk 0:02:56]} 5. Re1 {[%clk 0:02:59]}  Nf6 {[%clk 0:02:55]} 6. e5 {[%clk 0:02:57]}  Nd5 {[%clk 0:02:55]} 7. Nc3 {[%clk 0:02:56]}  Nc7 {[%clk 0:02:54]} 8. Bxc6 {[%clk 0:02:55]}  dxc6 {[%clk 0:02:55]} 9. h3 {[%clk 0:02:53]}  O-O {[%clk 0:02:55]} 10. d3 {[%clk 0:02:54]}  Ne6 {[%clk 0:02:52]} 11. Ne4 {[%clk 0:02:49]}  b6 {[%clk 0:02:51]} 12. b3 {[%clk 0:02:48]}  Nd4 {[%clk 0:02:49]} 13. Bb2 {[%clk 0:02:44]}  Bf5 {[%clk 0:02:47]} 14. Neg5 {[%clk 0:02:40]}  h6 {[%clk 0:02:42]} 15. Ne4 {[%clk 0:02:39]}  Qd5 {[%clk 0:02:34]} 16. c4 {[%clk 0:02:27]}  Qd7 {[%clk 0:02:26]} 17. Nxd4 {[%clk 0:02:26]}  cxd4 {[%clk 0:02:27]} 18. Ng3 {[%clk 0:02:26]}  c5 {[%clk 0:02:19]} 19. Qf3 {[%clk 0:02:24]}  Be6 {[%clk 0:02:13]} 20. Bc1 {[%clk 0:02:23]}  Qc7 {[%clk 0:02:06]} 21. Qe2 {[%clk 0:02:12]}  Rae8 {[%clk 0:02:02]} 22. Bd2 {[%clk 0:02:10]}  a5 {[%clk 0:01:59]} 23. a3 {[%clk 0:02:09]}  f6 {[%clk 0:01:53]} 24. f4 {[%clk 0:02:06]}  f5 {[%clk 0:01:44]} 25. b4 {[%clk 0:02:05]}  axb4 {[%clk 0:01:43]} 26. axb4 {[%clk 0:02:06]}  Ra8 {[%clk 0:01:44]} 27. Reb1 {[%clk 0:02:03]}  Bd7 {[%clk 0:01:42]} 28. e6 {[%clk 0:01:51]}  Bc6 {[%clk 0:01:40]} 29. b5 {[%clk 0:01:50]}  Bb7 {[%clk 0:01:39]} 30. Nf1 {[%clk 0:01:42]}  Qd6 {[%clk 0:01:36]} 31. Nh2 {[%clk 0:01:38]}  Rf6 {[%clk 0:01:21]} 32. Rxa8+ {[%clk 0:01:35]}  Bxa8 {[%clk 0:01:22]} 33. Re1 {[%clk 0:01:33]}  Bb7 {[%clk 0:01:19]} 34. Bc1 {[%clk 0:01:04]}  Bc8 {[%clk 0:01:06]} 35. Qa2 {[%clk 0:01:04]}  Rxe6 {[%clk 0:01:04]} 36. Rxe6 {[%clk 0:01:04]}  Bxe6 {[%clk 0:00:51]} 37. Qa7 {[%clk 0:01:02]}  Kh7 {[%clk 0:00:45]} 38. Nf3 {[%clk 0:01:01]}  Bd7 {[%clk 0:00:34]} 39. Qb7 {[%clk 0:00:55]}  Be8 {[%clk 0:00:30]} 40. Kf2 {[%clk 0:00:54]}  Bf7 {[%clk 0:00:30]} 41. Bd2 {[%clk 0:00:52]}  Bf6 {[%clk 0:00:25]} 42. h4 {[%clk 0:00:48]}  Kg7 {[%clk 0:00:24]} 43. g3 {[%clk 0:00:47]}  Qd8 {[%clk 0:00:11]} 44. Ne5 {[%clk 0:00:46]}  Bxe5 {[%clk 0:00:09]} 45. fxe5 {[%clk 0:00:47]}  Be6 {[%clk 0:00:09]} 46. Bf4 {[%clk 0:00:43]}  Kh7 {[%clk 0:00:06]} 47. Qc6 {[%clk 0:00:42]}  Qc8 {[%clk 0:00:03]} 48. Qxb6 {[%clk 0:00:42]}  Bf7 {[%clk 0:00:02]} 49. Qa7 {[%clk 0:00:40]}  Qe6 {[%clk 0:00:01]} 50. b6 {[%clk 0:00:37]}  g5 {[%clk 0:00:02]} 51. b7 {[%clk 0:00:32]}  gxf4 {[%clk 0:00:02]} 52. gxf4 {[%clk 0:00:30]}  Qg6 {[%clk 0:00:02]} 53. b8=Q {[%clk 0:00:30]}  Qg4 {[%clk 0:00:02]} 54. Qxc5 {[%clk 0:00:12]}  Qxf4+ {[%clk 0:00:02]} 55. Ke2 {[%clk 0:00:12]}  Bh5+ {[%clk 0:00:02]} 56. Ke1 {[%clk 0:00:10]}  Qe3+ {[%clk 0:00:02]} 57. Kf1 {[%clk 0:00:10]}  Be2+ {[%clk 0:00:03]} 58. Kg2 {[%clk 0:00:10]}  Bf3+ {[%clk 0:00:03]} 59. Kh2 {[%clk 0:00:02]}  Qf2+ {[%clk 0:00:03]} 0-1


[Site "https://www.chess.com"]

[Event "Titled Tuesday Blitz August 08 Early 2023"]
[White "Bernadskiy, Vitaliy"]
[Black "Matyukov, Petr"]
[WhiteFideId "14100371"]
[BlackFideId "4103688"]
[WhiteElo "2868"]
[BlackElo "2587"]
[Result "1-0"]
[Round "2"]
[TimeControl "180+1"]
[Date "2023.08.08"]
[WhiteClock "0:01:25"]
[BlackClock "0:00:00"]
[Board "45"]

1. d4 {[%clk 0:03:00]}  Nf6 {[%clk 0:02:59]} 2. Nf3 {[%clk 0:03:01]}  e6 {[%clk 0:03:00]} 3. c3 {[%clk 0:03:00]}  c5 {[%clk 0:02:58]} 4. Bf4 {[%clk 0:02:59]}  b6 {[%clk 0:02:56]} 5. e3 {[%clk 0:02:59]}  Bb7 {[%clk 0:02:56]} 6. Nbd2 {[%clk 0:02:59]}  Be7 {[%clk 0:02:55]} 7. h3 {[%clk 0:02:55]}  d6 {[%clk 0:02:52]} 8. a4 {[%clk 0:02:55]}  a6 {[%clk 0:02:47]} 9. Be2 {[%clk 0:02:50]}  Nbd7 {[%clk 0:02:47]} 10. O-O {[%clk 0:02:50]}  O-O {[%clk 0:02:47]} 11. Nc4 {[%clk 0:02:50]}  d5 {[%clk 0:02:20]} 12. Nce5 {[%clk 0:02:49]}  Rc8 {[%clk 0:02:14]} 13. Bd3 {[%clk 0:02:47]}  Ne4 {[%clk 0:02:13]} 14. Qe2 {[%clk 0:02:47]}  f6 {[%clk 0:02:11]} 15. Nxd7 {[%clk 0:02:46]}  Qxd7 {[%clk 0:02:12]} 16. Bxa6 {[%clk 0:02:47]}  Bxa6 {[%clk 0:01:25]} 17. Qxa6 {[%clk 0:02:47]}  c4 {[%clk 0:01:26]} 18. Qxb6 {[%clk 0:01:54]}  Bd8 {[%clk 0:01:21]} 19. Qb5 {[%clk 0:01:51]}  Qa7 {[%clk 0:01:00]} 20. a5 {[%clk 0:01:40]}  Bc7 {[%clk 0:00:50]} 21. Qd7 {[%clk 0:01:38]}  e5 {[%clk 0:00:18]} 22. Qxd5+ {[%clk 0:01:35]}  Kh8 {[%clk 0:00:18]} 23. Qxe4 {[%clk 0:01:35]}  exf4 {[%clk 0:00:18]} 24. exf4 {[%clk 0:01:36]}  Bxa5 {[%clk 0:00:17]} 25. Qf5 {[%clk 0:01:32]}  Ra8 {[%clk 0:00:16]} 26. Rfe1 {[%clk 0:01:32]}  Qb6 {[%clk 0:00:15]} 27. Re2 {[%clk 0:01:29]}  Qc7 {[%clk 0:00:06]} 28. Rae1 {[%clk 0:01:27]}  Bb6 {[%clk 0:00:03]} 29. Re7 {[%clk 0:01:27]}  Qc6 {[%clk 0:00:04]} 30. Qg4 {[%clk 0:01:25]}  Rg8 {[%clk 0:00:03]} 31. Nh4 {[%clk 0:01:25]}  h6 {[%clk 0:00:02]} 32. Ng6+ {[%clk 0:01:24]}  Kh7 {[%clk 0:00:00]} 33. Qf5 {[%clk 0:01:25]} 1-0


[Site "https://www.chess.com"]

[Event "Titled Tuesday Blitz August 08 Early 2023"]
[White "Moskvin, Anatoly"]
[Black "Pranav Anand"]
[WhiteFideId "24199990"]
[BlackFideId "46626786"]
[WhiteElo "2586"]
[BlackElo "2864"]
[Result "0-1"]
[Round "2"]
[TimeControl "180+1"]
[Date "2023.08.08"]
[WhiteClock "0:00:09"]
[BlackClock "0:01:31"]
[Board "46"]

1. e4 {[%clk 0:03:00]}  e5 {[%clk 0:02:55]} 2. Nf3 {[%clk 0:03:00]}  Nc6 {[%clk 0:02:56]} 3. Bc4 {[%clk 0:03:00]}  Nf6 {[%clk 0:02:55]} 4. d3 {[%clk 0:03:00]}  Bc5 {[%clk 0:02:55]} 5. c3 {[%clk 0:03:01]}  d6 {[%clk 0:02:56]} 6. Nbd2 {[%clk 0:03:01]}  a6 {[%clk 0:02:56]} 7. Bb3 {[%clk 0:03:02]}  Ba7 {[%clk 0:02:57]} 8. h3 {[%clk 0:03:02]}  Ne7 {[%clk 0:02:57]} 9. Nf1 {[%clk 0:03:02]}  Ng6 {[%clk 0:02:58]} 10. Ng3 {[%clk 0:03:02]}  c6 {[%clk 0:02:57]} 11. Nh2 {[%clk 0:02:56]}  Be6 {[%clk 0:02:54]} 12. Ng4 {[%clk 0:02:46]}  h5 {[%clk 0:02:47]} 13. Ne3 {[%clk 0:02:29]}  Nf4 {[%clk 0:02:46]} 14. Ngf5 {[%clk 0:02:07]}  Bxf5 {[%clk 0:02:36]} 15. Nxf5 {[%clk 0:02:07]}  g6 {[%clk 0:02:37]} 16. Bxf4 {[%clk 0:01:47]}  exf4 {[%clk 0:02:37]} 17. Nd4 {[%clk 0:01:48]}  Bxd4 {[%clk 0:02:35]} 18. cxd4 {[%clk 0:01:48]}  Qb6 {[%clk 0:02:36]} 19. e5 {[%clk 0:01:36]}  Nd5 {[%clk 0:02:25]} 20. exd6 {[%clk 0:01:28]}  O-O {[%clk 0:02:25]} 21. O-O {[%clk 0:01:25]}  Qxd4 {[%clk 0:02:25]} 22. Re1 {[%clk 0:01:23]}  Rad8 {[%clk 0:02:19]} 23. Re4 {[%clk 0:01:20]}  Qxb2 {[%clk 0:02:17]} 24. Rb1 {[%clk 0:01:20]}  Qf6 {[%clk 0:02:11]} 25. Bxd5 {[%clk 0:01:13]}  cxd5 {[%clk 0:02:11]} 26. Re7 {[%clk 0:01:14]}  b5 {[%clk 0:02:11]} 27. a4 {[%clk 0:01:02]}  Rxd6 {[%clk 0:02:10]} 28. Ra7 {[%clk 0:01:03]}  Qd4 {[%clk 0:02:08]} 29. Rb7 {[%clk 0:00:58]}  bxa4 {[%clk 0:02:07]} 30. R1b4 {[%clk 0:00:56]}  Qe5 {[%clk 0:01:58]} 31. Rxa4 {[%clk 0:00:53]}  Rc8 {[%clk 0:01:57]} 32. Ra7 {[%clk 0:00:43]}  f3 {[%clk 0:01:43]} 33. gxf3 {[%clk 0:00:37]}  Qg5+ {[%clk 0:01:40]} 34. Kh2 {[%clk 0:00:31]}  Rf6 {[%clk 0:01:36]} 35. R4xa6 {[%clk 0:00:20]}  Rxa6 {[%clk 0:01:30]} 36. Rxa6 {[%clk 0:00:09]}  Rc1 {[%clk 0:01:31]} 0-1


[Site "https://www.chess.com"]

[Event "Titled Tuesday Blitz August 08 Early 2023"]
[White "banhgiahuy2606"]
[Black "Timofeev, Artyom"]
[BlackFideId "4140419"]
[WhiteElo "2586"]
[BlackElo "2843"]
[Result "1-0"]
[Round "2"]
[TimeControl "180+1"]
[Date "2023.08.08"]
[WhiteClock "0:00:38"]
[BlackClock "0:00:00"]
[Board "48"]

1. e4 {[%clk 0:03:00]}  e6 {[%clk 0:02:59]} 2. b3 {[%clk 0:02:58]}  d5 {[%clk 0:02:58]} 3. Bb2 {[%clk 0:02:59]}  dxe4 {[%clk 0:02:57]} 4. Nc3 {[%clk 0:02:59]}  Nf6 {[%clk 0:02:52]} 5. Qe2 {[%clk 0:02:59]}  Be7 {[%clk 0:02:51]} 6. Nxe4 {[%clk 0:02:58]}  O-O {[%clk 0:02:51]} 7. Nf3 {[%clk 0:02:59]}  a5 {[%clk 0:02:51]} 8. a4 {[%clk 0:02:57]}  Nc6 {[%clk 0:02:50]} 9. O-O-O {[%clk 0:02:57]}  Nb4 {[%clk 0:02:49]} 10. Nxf6+ {[%clk 0:02:49]}  Bxf6 {[%clk 0:02:49]} 11. Ne5 {[%clk 0:02:49]}  Qd5 {[%clk 0:02:40]} 12. f4 {[%clk 0:02:45]}  b6 {[%clk 0:02:35]} 13. h4 {[%clk 0:02:42]}  Bb7 {[%clk 0:02:34]} 14. Rh3 {[%clk 0:02:42]}  Qe4 {[%clk 0:02:24]} 15. Qxe4 {[%clk 0:02:36]}  Bxe4 {[%clk 0:02:24]} 16. d3 {[%clk 0:02:34]}  Bb7 {[%clk 0:02:23]} 17. g4 {[%clk 0:02:34]}  Nd5 {[%clk 0:02:14]} 18. g5 {[%clk 0:02:30]}  Be7 {[%clk 0:02:13]} 19. Bg2 {[%clk 0:02:02]}  Rab8 {[%clk 0:01:30]} 20. Nd7 {[%clk 0:01:35]}  Nxf4 {[%clk 0:01:28]} 21. Bxb7 {[%clk 0:01:33]}  Nxh3 {[%clk 0:01:23]} 22. Nxb8 {[%clk 0:01:19]}  Rxb8 {[%clk 0:01:22]} 23. Be4 {[%clk 0:01:18]}  Nf2 {[%clk 0:01:20]} 24. Re1 {[%clk 0:01:16]}  Nxe4 {[%clk 0:01:19]} 25. Rxe4 {[%clk 0:01:17]}  Bd6 {[%clk 0:01:17]} 26. Kd2 {[%clk 0:01:17]}  Kf8 {[%clk 0:01:03]} 27. Ke3 {[%clk 0:01:16]}  h6 {[%clk 0:01:01]} 28. gxh6 {[%clk 0:01:11]}  gxh6 {[%clk 0:01:01]} 29. Bf6 {[%clk 0:01:08]}  Ke8 {[%clk 0:00:53]} 30. Rg4 {[%clk 0:01:07]}  Kd7 {[%clk 0:00:53]} 31. Rg7 {[%clk 0:01:07]}  e5 {[%clk 0:00:53]} 32. Rh7 {[%clk 0:01:03]}  Ke6 {[%clk 0:00:44]} 33. Rxh6 {[%clk 0:01:03]}  Kf5 {[%clk 0:00:44]} 34. Bg5 {[%clk 0:00:59]}  Kg4 {[%clk 0:00:41]} 35. Rf6 {[%clk 0:00:58]}  Rf8 {[%clk 0:00:40]} 36. Ke4 {[%clk 0:00:57]}  Bc5 {[%clk 0:00:34]} 37. Kxe5 {[%clk 0:00:53]}  Re8+ {[%clk 0:00:19]} 38. Kd5 {[%clk 0:00:53]}  Re2 {[%clk 0:00:18]} 39. d4 {[%clk 0:00:51]}  Bd6 {[%clk 0:00:17]} 40. c4 {[%clk 0:00:48]}  Rb2 {[%clk 0:00:17]} 41. c5 {[%clk 0:00:45]}  bxc5 {[%clk 0:00:17]} 42. dxc5 {[%clk 0:00:46]}  Bg3 {[%clk 0:00:17]} 43. Rxf7 {[%clk 0:00:42]}  Rxb3 {[%clk 0:00:16]} 44. c6 {[%clk 0:00:42]}  Rb4 {[%clk 0:00:14]} 45. Bd8 {[%clk 0:00:40]}  Rxa4 {[%clk 0:00:12]} 46. Bxc7 {[%clk 0:00:40]}  Bxh4 {[%clk 0:00:09]} 47. Be5 {[%clk 0:00:41]}  Bd8 {[%clk 0:00:08]} 48. Rd7 {[%clk 0:00:38]}  Bb6 {[%clk 0:00:08]} 49. Rb7 {[%clk 0:00:37]}  Bd8 {[%clk 0:00:00]} 50. Rb8 {[%clk 0:00:38]} 1-0


[Site "https://www.chess.com"]